[Event "*** Titled Tuesday Blitz"]
[Site "Chess.com"]
[Date "2018.05.01"]
[Round "7"]
[White "Kimster98"]
[Black "Sanan_Sjugirov"]
[Result "1/2-1/2"]
[WhiteElo "2531"]
[BlackElo "2775"]
[TimeControl "180+2"]
[EndTime "14:38:57 PDT"]
[Termination "Game drawn by stalemate"]

1. d4 {[%clk 0:03:01.9]} 1... d6 {[%clk 0:02:56.8]} 2. Nf3 {[%clk 0:03:01.7]}
2... g6 {[%clk 0:02:57.5]} 3. c4 {[%clk 0:02:54.3]} 3... Bg7 {[%clk 0:02:58.1]}
4. Nc3 {[%clk 0:02:55.9]} 4... Nc6 {[%clk 0:02:59]} 5. e4 {[%clk 0:02:54.8]}
5... Bg4 {[%clk 0:02:58.8]} 6. d5 {[%clk 0:02:52.5]} 6... Nd4 {[%clk 0:02:58.7]}
7. Be3 {[%clk 0:02:48.9]} 7... Bxf3 {[%clk 0:02:55.8]} 8. gxf3 {[%clk
0:02:49.6]} 8... c5 {[%clk 0:02:54.5]} 9. Bxd4 {[%clk 0:02:04.9]} 9... cxd4
{[%clk 0:02:50]} 10. Qa4+ {[%clk 0:02:03.4]} 10... Kf8 {[%clk 0:02:39.8]} 11.
Nb5 {[%clk 0:01:57.8]} 11... a6 {[%clk 0:02:37.8]} 12. Na3 {[%clk 0:01:58.7]}
12... Nf6 {[%clk 0:02:28.8]} 13. O-O-O {[%clk 0:01:39]} 13... Nd7 {[%clk
0:02:29]} 14. Kb1 {[%clk 0:01:24.9]} 14... Nc5 {[%clk 0:02:26.2]} 15. Qb4 {[%clk
0:01:26.1]} 15... Be5 {[%clk 0:01:59.4]} 16. Qd2 {[%clk 0:01:25]} 16... Qb6
{[%clk 0:01:44.3]} 17. Bd3 {[%clk 0:01:15]} 17... Rc8 {[%clk 0:01:28]} 18. Qc1
{[%clk 0:00:59.2]} 18... Qa5 {[%clk 0:01:13.6]} 19. f4 {[%clk 0:00:53.8]} 19...
Bg7 {[%clk 0:01:13.5]} 20. Qd2 {[%clk 0:00:50.1]} 20... Qxd2 {[%clk 0:01:12.6]}
21. Rxd2 {[%clk 0:00:50.7]} 21... Bh6 {[%clk 0:01:13.9]} 22. Nc2 {[%clk
0:00:35.3]} 22... Bxf4 {[%clk 0:01:13.9]} 23. Rdd1 {[%clk 0:00:36.7]} 23... Be5
{[%clk 0:01:10.4]} 24. b3 {[%clk 0:00:29.6]} 24... g5 {[%clk 0:01:08.6]} 25. f3
{[%clk 0:00:29.9]} 25... h5 {[%clk 0:01:06.7]} 26. Be2 {[%clk 0:00:30.1]} 26...
h4 {[%clk 0:00:56.2]} 27. Nxd4 {[%clk 0:00:21.1]} 27... Bxd4 {[%clk 0:00:57]}
28. Rxd4 {[%clk 0:00:23]} 28... Kg7 {[%clk 0:00:58]} 29. Rdd1 {[%clk 0:00:22.3]}
29... Kf6 {[%clk 0:00:58.8]} 30. Rhg1 {[%clk 0:00:22.9]} 30... Rhg8 {[%clk
0:00:58.4]} 31. Rg4 {[%clk 0:00:23.7]} 31... Ke5 {[%clk 0:00:58]} 32. Rdg1
{[%clk 0:00:23.2]} 32... f6 {[%clk 0:00:41.3]} 33. f4+ {[%clk 0:00:17]} 33...
Kxe4 {[%clk 0:00:40.5]} 34. fxg5+ {[%clk 0:00:18.1]} 34... Ke3 {[%clk
0:00:41.6]} 35. gxf6 {[%clk 0:00:14.2]} 35... Rh8 {[%clk 0:00:29.6]} 36. f7
{[%clk 0:00:06]} 36... Kxe2 {[%clk 0:00:26.6]} 37. Rg8 {[%clk 0:00:07.2]} 37...
Nd7 {[%clk 0:00:26.5]} 38. Rxh8 {[%clk 0:00:07.2]} 38... Rxh8 {[%clk 0:00:26.5]}
39. Rg8 {[%clk 0:00:09.1]} 39... Rh5 {[%clk 0:00:20.7]} 40. f8=Q {[%clk
0:00:09.9]} 40... Nxf8 {[%clk 0:00:21.6]} 41. Rxf8 {[%clk 0:00:11.8]} 41... Re5
{[%clk 0:00:21.5]} 42. Rf4 {[%clk 0:00:10.6]} 42... Kd2 {[%clk 0:00:20.3]} 43.
Rxh4 {[%clk 0:00:10.8]} 43... b5 {[%clk 0:00:20.4]} 44. Kb2 {[%clk 0:00:10]}
44... b4 {[%clk 0:00:20.3]} 45. Rd4+ {[%clk 0:00:08.9]} 45... Ke3 {[%clk
0:00:20.9]} 46. Rg4 {[%clk 0:00:09.8]} 46... a5 {[%clk 0:00:18]} 47. a3 {[%clk
0:00:10.2]} 47... Rf5 {[%clk 0:00:16.3]} 48. Rg3+ {[%clk 0:00:10.9]} 48... Kd4
{[%clk 0:00:17]} 49. Rg2 {[%clk 0:00:11.4]} 49... Rf3 {[%clk 0:00:14.6]} 50.
axb4 {[%clk 0:00:11.7]} 50... axb4 {[%clk 0:00:16]} 51. Re2 {[%clk 0:00:13.3]}
51... Kd3 {[%clk 0:00:15.3]} 52. Rxe7 {[%clk 0:00:12.9]} 52... Rf2+ {[%clk
0:00:16.4]} 53. Kb1 {[%clk 0:00:14.4]} 53... Rxh2 {[%clk 0:00:16.9]} 54. Re6
{[%clk 0:00:14.8]} 54... Kc3 {[%clk 0:00:14.8]} 55. Re3+ {[%clk 0:00:15.6]}
55... Kd4 {[%clk 0:00:16.3]} 56. Rg3 {[%clk 0:00:17.1]} 56... Rf2 {[%clk
0:00:16.9]} 57. Rg6 {[%clk 0:00:17.8]} 57... Re2 {[%clk 0:00:16.4]} 58. Rg4+
{[%clk 0:00:16.6]} 58... Kc3 {[%clk 0:00:16.7]} 59. Rg3+ {[%clk 0:00:18]} 59...
Kd4 {[%clk 0:00:18]} 60. Rg4+ {[%clk 0:00:19.4]} 60... Kc3 {[%clk 0:00:18]} 61.
Rg3+ {[%clk 0:00:20.8]} 61... Kd2 {[%clk 0:00:19.2]} 62. Rg6 {[%clk 0:00:19.1]}
62... Rh2 {[%clk 0:00:17.4]} 63. Rf6 {[%clk 0:00:16.2]} 63... Rg2 {[%clk
0:00:17.5]} 64. Rh6 {[%clk 0:00:16.9]} 64... Rf2 {[%clk 0:00:18.1]} 65. Rg6
{[%clk 0:00:18]} 65... Kd3 {[%clk 0:00:17]} 66. Rg3+ {[%clk 0:00:19.1]} 66...
Kd4 {[%clk 0:00:18.4]} 67. Rg4+ {[%clk 0:00:20.4]} 67... Ke3 {[%clk 0:00:17.1]}
68. Rg3+ {[%clk 0:00:21.7]} 68... Kf4 {[%clk 0:00:17.3]} 69. Rg6 {[%clk
0:00:22.7]} 69... Ke5 {[%clk 0:00:18.5]} 70. Rg5+ {[%clk 0:00:22.1]} 70... Kd4
{[%clk 0:00:19.3]} 71. Rg4+ {[%clk 0:00:23.6]} 71... Kc3 {[%clk 0:00:19.2]} 72.
Rg3+ {[%clk 0:00:25.1]} 72... Kd2 {[%clk 0:00:20.6]} 73. Rg6 {[%clk 0:00:15.4]}
73... Re2 {[%clk 0:00:21.1]} 74. Rh6 {[%clk 0:00:16]} 74... Re3 {[%clk
0:00:15.3]} 75. Kb2 {[%clk 0:00:15.7]} 75... Kd3 {[%clk 0:00:16.6]} 76. Rh2
{[%clk 0:00:12.5]} 76... Rf3 {[%clk 0:00:17.4]} 77. Rg2 {[%clk 0:00:12.9]} 77...
Rh3 {[%clk 0:00:18]} 78. Rc2 {[%clk 0:00:13.7]} 78... Rh1 {[%clk 0:00:15.2]} 79.
c5 {[%clk 0:00:13.5]} 79... dxc5 {[%clk 0:00:15.9]} 80. Rxc5 {[%clk 0:00:15.4]}
80... Rh2+ {[%clk 0:00:16.7]} 81. Kb1 {[%clk 0:00:16.8]} 81... Rh1+ {[%clk
0:00:18]} 82. Kb2 {[%clk 0:00:18.2]} 82... Rh2+ {[%clk 0:00:19.1]} 83. Kb1
{[%clk 0:00:19.6]} 83... Kd4 {[%clk 0:00:19.7]} 84. Rc4+ {[%clk 0:00:18]} 84...
Kxd5 {[%clk 0:00:20.8]} 85. Rxb4 {[%clk 0:00:19.6]} 85... Kc5 {[%clk 0:00:22.2]}
86. Rc4+ {[%clk 0:00:20.5]} 86... Kb5 {[%clk 0:00:23.6]} 87. Kc1 {[%clk
0:00:22.4]} 87... Rg2 {[%clk 0:00:23.9]} 88. Kb1 {[%clk 0:00:23.6]} 88... Rh2
{[%clk 0:00:25.1]} 89. Rc2 {[%clk 0:00:23.1]} 89... Rxc2 {[%clk 0:00:22.4]} 90.
Kxc2 {[%clk 0:00:25]} 90... Kb4 {[%clk 0:00:23.7]} 91. Kb2 {[%clk 0:00:26.5]}
91... Kb5 {[%clk 0:00:25]} 92. Kc3 {[%clk 0:00:28.4]} 92... Kc5 {[%clk 0:00:26]}
93. b4+ {[%clk 0:00:30.3]} 93... Kb5 {[%clk 0:00:27.2]} 94. Kb3 {[%clk
0:00:32.2]} 94... Kb6 {[%clk 0:00:28.5]} 95. Kc4 {[%clk 0:00:34.1]} 95... Kc6
{[%clk 0:00:29.7]} 96. b5+ {[%clk 0:00:36]} 96... Kb6 {[%clk 0:00:30.7]} 97. Kb4
{[%clk 0:00:37.9]} 97... Kb7 {[%clk 0:00:31.8]} 98. Ka5 {[%clk 0:00:39.8]} 98...
Ka7 {[%clk 0:00:32.9]} 99. b6+ {[%clk 0:00:38.6]} 99... Kb7 {[%clk 0:00:33.7]}
100. Kb5 {[%clk 0:00:40.5]} 100... Kb8 {[%clk 0:00:34.8]} 101. Kc6 {[%clk
0:00:41.7]} 101... Kc8 {[%clk 0:00:35.9]} 102. b7+ {[%clk 0:00:42.7]} 102... Kb8
{[%clk 0:00:37]} 103. Kb6 {[%clk 0:00:44.6]} 1/2-1/2

[Event "*** Titled Tuesday Blitz"]
[Site "Chess.com"]
[Date "2018.05.01"]
[Round "7"]
[White "FastChance"]
[Black "ENEASZ"]
[Result "1/2-1/2"]
[WhiteElo "2669"]
[BlackElo "2458"]
[TimeControl "180+2"]
[EndTime "14:39:01 PDT"]
[Termination "Game drawn by repetition"]

1. e4 {[%clk 0:03:01.9]} 1... d6 {[%clk 0:03:00]} 2. Nc3 {[%clk 0:03:02.8]} 2...
Nf6 {[%clk 0:03:00.8]} 3. f4 {[%clk 0:03:04.1]} 3... c5 {[%clk 0:03:01.6]} 4.
Nf3 {[%clk 0:03:04.4]} 4... Nc6 {[%clk 0:03:02.8]} 5. Bb5 {[%clk 0:03:05.9]}
5... g6 {[%clk 0:03:02.5]} 6. Bxc6+ {[%clk 0:03:07.1]} 6... bxc6 {[%clk
0:03:04]} 7. d3 {[%clk 0:03:09]} 7... Bg7 {[%clk 0:03:03.8]} 8. h3 {[%clk
0:03:09.5]} 8... O-O {[%clk 0:03:04.5]} 9. O-O {[%clk 0:03:11]} 9... Rb8 {[%clk
0:03:00.9]} 10. Rb1 {[%clk 0:03:12.2]} 10... Ne8 {[%clk 0:02:56.9]} 11. Bd2
{[%clk 0:03:05.3]} 11... Nc7 {[%clk 0:02:57.3]} 12. Qe2 {[%clk 0:02:51.4]} 12...
Nb5 {[%clk 0:02:56.7]} 13. e5 {[%clk 0:02:44.4]} 13... Be6 {[%clk 0:02:51.9]}
14. a4 {[%clk 0:02:41.5]} 14... Nd4 {[%clk 0:02:48.9]} 15. Nxd4 {[%clk
0:02:36.9]} 15... cxd4 {[%clk 0:02:50.8]} 16. Ne4 {[%clk 0:02:36.4]} 16... dxe5
{[%clk 0:02:48.3]} 17. fxe5 {[%clk 0:02:37.5]} 17... Qd5 {[%clk 0:02:47.6]} 18.
Ng5 {[%clk 0:02:30.1]} 18... Qxe5 {[%clk 0:02:29.6]} 19. Qxe5 {[%clk 0:02:28.5]}
19... Bxe5 {[%clk 0:02:31.5]} 20. Nxe6 {[%clk 0:02:28.6]} 20... fxe6 {[%clk
0:02:33.4]} 21. b3 {[%clk 0:02:26.4]} 21... Bg3 {[%clk 0:02:21.9]} 22. Bg5
{[%clk 0:02:14.9]} 22... Bd6 {[%clk 0:02:07.7]} 23. Rbe1 {[%clk 0:02:12]} 23...
e5 {[%clk 0:01:41.6]} 24. g4 {[%clk 0:02:08.1]} 24... Rxf1+ {[%clk 0:01:35.9]}
25. Rxf1 {[%clk 0:02:09]} 25... Rf8 {[%clk 0:01:37.7]} 26. Rxf8+ {[%clk
0:02:07.5]} 26... Kxf8 {[%clk 0:01:39.5]} 27. Kg2 {[%clk 0:02:08.9]} 27... Kf7
{[%clk 0:01:40.6]} 28. Kf3 {[%clk 0:02:08.9]} 28... Ke6 {[%clk 0:01:41.3]} 29.
Ke4 {[%clk 0:02:10.1]} 29... a6 {[%clk 0:01:39.2]} 30. Bh6 {[%clk 0:02:07.5]}
30... Bb4 {[%clk 0:01:37.3]} 31. Bg7 {[%clk 0:02:06.4]} 31... Bd6 {[%clk
0:01:37.5]} 32. Bh8 {[%clk 0:02:07.5]} 32... h5 {[%clk 0:01:37.1]} 33. gxh5
{[%clk 0:01:57.8]} 33... gxh5 {[%clk 0:01:39]} 34. Bg7 {[%clk 0:01:59.2]} 34...
Bc7 {[%clk 0:01:39.7]} 35. Bh6 {[%clk 0:02:00.5]} 35... Bd6 {[%clk 0:01:40.7]}
36. Bg5 {[%clk 0:02:01.9]} 36... Bc7 {[%clk 0:01:41.6]} 37. Bh4 {[%clk
0:02:03.3]} 37... Bd6 {[%clk 0:01:42.8]} 38. Be1 {[%clk 0:02:04.5]} 38... Bc7
{[%clk 0:01:38.4]} 39. Bb4 {[%clk 0:02:05.1]} 39... Bd6 {[%clk 0:01:38.9]} 40.
Ba5 {[%clk 0:02:06.4]} 40... Kf6 {[%clk 0:01:36]} 41. Bd2 {[%clk 0:01:59.9]}
41... Kg6 {[%clk 0:01:36.1]} 42. Bc1 {[%clk 0:01:54.9]} 42... Kf6 {[%clk
0:01:36.7]} 43. Bh6 {[%clk 0:01:55.4]} 43... Kg6 {[%clk 0:01:35.8]} 44. Bc1
{[%clk 0:01:54.3]} 44... Kf6 {[%clk 0:01:36.1]} 45. Bd2 {[%clk 0:01:55.2]} 45...
Kg6 {[%clk 0:01:36.8]} 46. c3 {[%clk 0:01:51.2]} 46... dxc3 {[%clk 0:01:38]} 47.
Bxc3 {[%clk 0:01:52.1]} 47... Kg5 {[%clk 0:01:28.1]} 48. Be1 {[%clk 0:01:50.9]}
48... Bc7 {[%clk 0:01:21.8]} 49. Bg3 {[%clk 0:01:49.5]} 49... Bd6 {[%clk
0:01:18.7]} 50. Be1 {[%clk 0:01:45.7]} 50... Bc7 {[%clk 0:01:19.4]} 51. Bf2
{[%clk 0:01:47]} 51... Bd6 {[%clk 0:01:20.2]} 52. Bg3 {[%clk 0:01:48.1]} 52...
Kf6 {[%clk 0:01:18.7]} 53. Bh4+ {[%clk 0:01:40.3]} 53... Ke6 {[%clk 0:01:18.7]}
54. Bg5 {[%clk 0:01:41.9]} 54... Bc7 {[%clk 0:01:19.4]} 55. Bd2 {[%clk
0:01:41.4]} 55... Bd6 {[%clk 0:01:20.4]} 56. Bc3 {[%clk 0:01:40.5]} 56... Bc7
{[%clk 0:01:20.6]} 57. Be1 {[%clk 0:01:41.3]} 57... Bd6 {[%clk 0:01:21.5]} 58.
Bg3 {[%clk 0:01:43]} 58... Kf6 {[%clk 0:01:21.1]} 59. Bf2 {[%clk 0:01:41.1]}
59... Kg5 {[%clk 0:01:19.5]} 60. Bg3 {[%clk 0:01:35.6]} 60... Kf6 {[%clk
0:01:19.5]} 61. h4 {[%clk 0:01:34]} 61... Ke6 {[%clk 0:01:19.3]} 62. Bf2 {[%clk
0:01:34.3]} 62... Bb4 {[%clk 0:01:17.4]} 63. Bg3 {[%clk 0:01:27.2]} 63... Bd6
{[%clk 0:01:17.8]} 64. Be1 {[%clk 0:01:27.2]} 64... Bc5 {[%clk 0:01:17.2]} 65.
Bg3 {[%clk 0:01:23.5]} 65... Bg1 {[%clk 0:01:17.2]} 66. Be1 {[%clk 0:01:13.1]}
66... Bh2 {[%clk 0:01:15.4]} 67. Bf2 {[%clk 0:01:12.7]} 67... Kf6 {[%clk
0:01:00.1]} 68. Be1 {[%clk 0:01:11.7]} 68... Bg1 {[%clk 0:00:56.5]} 69. Bg3
{[%clk 0:01:12.4]} 69... Ke6 {[%clk 0:00:57.4]} 70. Be1 {[%clk 0:01:11.2]} 70...
Bh2 {[%clk 0:00:53.5]} 71. Bf2 {[%clk 0:01:11.1]} 71... Bf4 {[%clk 0:00:53]} 72.
Be1 {[%clk 0:01:08.6]} 72... Bh6 {[%clk 0:00:52.6]} 73. Bg3 {[%clk 0:01:07.6]}
73... Bg7 {[%clk 0:00:53.6]} 74. Bf2 {[%clk 0:01:06.4]} 74... Bf6 {[%clk
0:00:54.5]} 75. Bg3 {[%clk 0:01:07.7]} 75... Bh8 {[%clk 0:00:49.9]} 76. Bf2
{[%clk 0:01:06.7]} 76... Bg7 {[%clk 0:00:51.1]} 77. Be1 {[%clk 0:01:07.4]} 77...
Bh8 {[%clk 0:00:52.1]} 78. Bc3 {[%clk 0:01:06.9]} 78... Bf6 {[%clk 0:00:51.6]}
79. Be1 {[%clk 0:01:08]} 79... Kd6 {[%clk 0:00:48.1]} 80. Bg3 {[%clk 0:01:06.8]}
80... Kc5 {[%clk 0:00:43.4]} 81. Be1 {[%clk 0:00:59.9]} 81... Kd6 {[%clk
0:00:41.1]} 82. Bb4+ {[%clk 0:00:57.4]} 82... Ke6 {[%clk 0:00:40.7]} 83. Be1
{[%clk 0:00:59.3]} 83... Kd6 {[%clk 0:00:41.8]} 84. Bf2 {[%clk 0:00:59.5]} 84...
Ke6 {[%clk 0:00:39.5]} 85. Bg3 {[%clk 0:00:59.9]} 85... Bg7 {[%clk 0:00:40.5]}
86. Be1 {[%clk 0:01:00]} 86... Bh8 {[%clk 0:00:41.4]} 87. Bc3 {[%clk 0:01:00.2]}
87... Bf6 {[%clk 0:00:42.1]} 88. Be1 {[%clk 0:01:01.5]} 88... Kd6 {[%clk
0:00:43.4]} 89. Bg3 {[%clk 0:01:01]} 89... Kc5 {[%clk 0:00:40]} 90. Be1 {[%clk
0:01:01.9]} 90... e6 {[%clk 0:00:28.9]} 91. b4+ {[%clk 0:00:57.6]} 91... Kd6
{[%clk 0:00:29.2]} 92. Bg3 {[%clk 0:00:57.7]} 92... Kd7 {[%clk 0:00:25.4]} 93.
Be1 {[%clk 0:00:50]} 93... Kd6 {[%clk 0:00:25.5]} 94. Bg3 {[%clk 0:00:51.2]}
94... Kd7 {[%clk 0:00:26.8]} 95. Be1 {[%clk 0:00:52.3]} 95... Kd6 {[%clk
0:00:27.7]} 96. Bg3 {[%clk 0:00:52.7]} 96... Kd7 {[%clk 0:00:29]} 97. Be1 {[%clk
0:00:52.6]} 97... Kd6 {[%clk 0:00:25.1]} 98. Bg3 {[%clk 0:00:48.7]} 98... Kd7
{[%clk 0:00:26.3]} 1/2-1/2

[Event "*** Titled Tuesday Blitz"]
[Site "Chess.com"]
[Date "2018.05.01"]
[Round "7"]
[White "MartinZumsande"]
[Black "vugarrasulov"]
[Result "1/2-1/2"]
[WhiteElo "2521"]
[BlackElo "2730"]
[TimeControl "180+2"]
[EndTime "14:41:04 PDT"]
[Termination "Game drawn by 50-move rule"]

1. e4 {[%clk 0:03:01.9]} 1... e5 {[%clk 0:03:00.2]} 2. Nf3 {[%clk 0:03:02.8]}
2... Nc6 {[%clk 0:03:01.5]} 3. Bc4 {[%clk 0:03:03.8]} 3... Bc5 {[%clk
0:03:00.8]} 4. c3 {[%clk 0:03:04.9]} 4... Nf6 {[%clk 0:03:01.5]} 5. b4 {[%clk
0:03:03.9]} 5... Bb6 {[%clk 0:03:01.9]} 6. d3 {[%clk 0:03:04.9]} 6... d6 {[%clk
0:03:01.8]} 7. a4 {[%clk 0:03:05.1]} 7... a6 {[%clk 0:02:58.5]} 8. O-O {[%clk
0:03:02.3]} 8... O-O {[%clk 0:02:56.6]} 9. Nbd2 {[%clk 0:03:03]} 9... Ne7 {[%clk
0:02:57.3]} 10. Bb3 {[%clk 0:03:03.4]} 10... Ng6 {[%clk 0:02:56]} 11. Nc4 {[%clk
0:03:04.8]} 11... Ba7 {[%clk 0:02:57.4]} 12. Be3 {[%clk 0:03:05.5]} 12... Bg4
{[%clk 0:02:51.8]} 13. Bxa7 {[%clk 0:02:49.3]} 13... Rxa7 {[%clk 0:02:53.7]} 14.
Ne3 {[%clk 0:02:50.1]} 14... Be6 {[%clk 0:02:54.9]} 15. Re1 {[%clk 0:02:44.5]}
15... Ra8 {[%clk 0:02:49.6]} 16. Ng5 {[%clk 0:02:26.4]} 16... Bxb3 {[%clk
0:02:46.5]} 17. Qxb3 {[%clk 0:02:28.3]} 17... Nf4 {[%clk 0:02:38.9]} 18. Rad1
{[%clk 0:02:21.5]} 18... a5 {[%clk 0:02:20.6]} 19. g3 {[%clk 0:02:02.7]} 19...
Nd7 {[%clk 0:02:06.6]} 20. Nf3 {[%clk 0:01:40.1]} 20... Ne6 {[%clk 0:02:05.9]}
21. d4 {[%clk 0:01:23.6]} 21... exd4 {[%clk 0:02:05.5]} 22. cxd4 {[%clk
0:01:24.8]} 22... Qf6 {[%clk 0:01:45]} 23. Nd5 {[%clk 0:01:21.5]} 23... Qd8
{[%clk 0:01:41.5]} 24. b5 {[%clk 0:01:18.8]} 24... c6 {[%clk 0:01:39.7]} 25. Nc3
{[%clk 0:01:17]} 25... Qf6 {[%clk 0:01:35.9]} 26. Kg2 {[%clk 0:01:15.1]} 26...
Rfe8 {[%clk 0:01:35.5]} 27. e5 {[%clk 0:01:07.1]} 27... dxe5 {[%clk 0:01:11.7]}
28. dxe5 {[%clk 0:01:08.1]} 28... Ndc5 {[%clk 0:01:10]} 29. exf6 {[%clk
0:00:58.6]} 29... Nxb3 {[%clk 0:01:11.1]} 30. bxc6 {[%clk 0:00:56.8]} 30... bxc6
{[%clk 0:01:11.3]} 31. fxg7 {[%clk 0:00:57.1]} 31... Nbc5 {[%clk 0:01:11.7]} 32.
Ne5 {[%clk 0:00:53]} 32... Rac8 {[%clk 0:01:00.7]} 33. f4 {[%clk 0:00:54]} 33...
Kxg7 {[%clk 0:00:58.6]} 34. Rd6 {[%clk 0:00:52.3]} 34... f6 {[%clk 0:00:53.3]}
35. Nf3 {[%clk 0:00:53]} 35... Kf7 {[%clk 0:00:47.4]} 36. Red1 {[%clk
0:00:43.1]} 36... Red8 {[%clk 0:00:47]} 37. Rxd8 {[%clk 0:00:40.5]} 37... Nxd8
{[%clk 0:00:42.9]} 38. Nd4 {[%clk 0:00:38]} 38... Nde6 {[%clk 0:00:42]} 39. Nf5
{[%clk 0:00:38.9]} 39... Rb8 {[%clk 0:00:42.9]} 40. Rd6 {[%clk 0:00:22.7]} 40...
Rb2+ {[%clk 0:00:43.2]} 41. Kh3 {[%clk 0:00:23.6]} 41... Rb3 {[%clk 0:00:44.7]}
42. Ne2 {[%clk 0:00:20.8]} 42... Nd3 {[%clk 0:00:24.4]} 43. Rxc6 {[%clk
0:00:18.3]} 43... Ndxf4+ {[%clk 0:00:24.5]} 44. Nxf4 {[%clk 0:00:19.5]} 44...
Nxf4+ {[%clk 0:00:26.4]} 45. Kg4 {[%clk 0:00:21.1]} 45... Ne6 {[%clk 0:00:27.5]}
46. Ra6 {[%clk 0:00:21]} 46... Rb4+ {[%clk 0:00:23.8]} 47. Kf3 {[%clk
0:00:20.2]} 47... Rxa4 {[%clk 0:00:24.7]} 48. Ra7+ {[%clk 0:00:20.6]} 48... Kf8
{[%clk 0:00:23]} 49. Nd6 {[%clk 0:00:19.6]} 49... Rd4 {[%clk 0:00:19.9]} 50. Nf5
{[%clk 0:00:17.9]} 50... Rd5 {[%clk 0:00:19.8]} 51. Ne3 {[%clk 0:00:18.3]} 51...
Rc5 {[%clk 0:00:20.1]} 52. Ng4 {[%clk 0:00:19.2]} 52... h5 {[%clk 0:00:19.2]}
53. Nxf6 {[%clk 0:00:17.6]} 53... Rf5+ {[%clk 0:00:20.2]} 54. Ke4 {[%clk
0:00:19.1]} 54... Rxf6 {[%clk 0:00:22.1]} 55. Ke5 {[%clk 0:00:20.7]} 55... Rg6
{[%clk 0:00:22.7]} 56. Kf5 {[%clk 0:00:20.2]} 56... Rh6 {[%clk 0:00:22.2]} 57.
Rxa5 {[%clk 0:00:19.6]} 57... Ng7+ {[%clk 0:00:23.6]} 58. Kg5 {[%clk 0:00:20.3]}
58... Rd6 {[%clk 0:00:24.2]} 59. Ra7 {[%clk 0:00:18.8]} 59... Kg8 {[%clk
0:00:24.9]} 60. h3 {[%clk 0:00:18.9]} 60... Kh7 {[%clk 0:00:25.1]} 61. g4 {[%clk
0:00:20.3]} 61... Rd5+ {[%clk 0:00:26.2]} 62. Kh4 {[%clk 0:00:21.4]} 62... hxg4
{[%clk 0:00:27]} 63. hxg4 {[%clk 0:00:23.3]} 63... Kg6 {[%clk 0:00:28.4]} 64.
Kg3 {[%clk 0:00:22.9]} 64... Ne6 {[%clk 0:00:29.2]} 65. Kf3 {[%clk 0:00:23.1]}
65... Rd4 {[%clk 0:00:30.1]} 66. Ke3 {[%clk 0:00:23.5]} 66... Rxg4 {[%clk
0:00:30.9]} 67. Ra6 {[%clk 0:00:24.3]} 67... Kf6 {[%clk 0:00:32]} 68. Rb6 {[%clk
0:00:24.6]} 68... Ke5 {[%clk 0:00:32.6]} 69. Rb5+ {[%clk 0:00:25.8]} 69... Kd6
{[%clk 0:00:34.1]} 70. Ra5 {[%clk 0:00:26.5]} 70... Nc5 {[%clk 0:00:35.1]} 71.
Kf3 {[%clk 0:00:26.1]} 71... Rb4 {[%clk 0:00:35.6]} 72. Ra8 {[%clk 0:00:27.2]}
72... Ne6 {[%clk 0:00:34.8]} 73. Ra6+ {[%clk 0:00:27.3]} 73... Kd5 {[%clk
0:00:35.2]} 74. Ra5+ {[%clk 0:00:28.3]} 74... Nc5 {[%clk 0:00:36.6]} 75. Ra8
{[%clk 0:00:29.5]} 75... Rb3+ {[%clk 0:00:35.3]} 76. Kf4 {[%clk 0:00:30.4]}
76... Ne6+ {[%clk 0:00:36.4]} 77. Kg4 {[%clk 0:00:30.3]} 77... Rb4+ {[%clk
0:00:36.5]} 78. Kf3 {[%clk 0:00:30.3]} 78... Rf4+ {[%clk 0:00:30.8]} 79. Ke3
{[%clk 0:00:31]} 79... Rh4 {[%clk 0:00:31.5]} 80. Ra5+ {[%clk 0:00:31.6]} 80...
Nc5 {[%clk 0:00:32.9]} 81. Kf3 {[%clk 0:00:32.9]} 81... Rc4 {[%clk 0:00:34]} 82.
Ra8 {[%clk 0:00:33.4]} 82... Ke5 {[%clk 0:00:34.9]} 83. Re8+ {[%clk 0:00:32.9]}
83... Ne6 {[%clk 0:00:36.2]} 84. Ra8 {[%clk 0:00:34]} 84... Kf5 {[%clk
0:00:35.8]} 85. Ke3 {[%clk 0:00:34.6]} 85... Rc3+ {[%clk 0:00:35.5]} 86. Kd2
{[%clk 0:00:35.8]} 86... Rh3 {[%clk 0:00:37]} 87. Ra4 {[%clk 0:00:35.5]} 87...
Ke5 {[%clk 0:00:38.3]} 88. Ke2 {[%clk 0:00:35]} 88... Nd4+ {[%clk 0:00:39.6]}
89. Kf2 {[%clk 0:00:34.8]} 89... Ke4 {[%clk 0:00:41.5]} 90. Ra8 {[%clk
0:00:34.7]} 90... Rf3+ {[%clk 0:00:39.7]} 91. Kg2 {[%clk 0:00:35.5]} 91... Rf6
{[%clk 0:00:38.9]} 92. Kg3 {[%clk 0:00:33.7]} 92... Ne2+ {[%clk 0:00:37.8]} 93.
Kg4 {[%clk 0:00:31.7]} 93... Rg6+ {[%clk 0:00:38.5]} 94. Kh4 {[%clk 0:00:27.5]}
94... Nd4 {[%clk 0:00:34.9]} 95. Kh5 {[%clk 0:00:27.1]} 95... Rg1 {[%clk
0:00:35.7]} 96. Kh6 {[%clk 0:00:26.5]} 96... Nf5+ {[%clk 0:00:36.4]} 97. Kh7
{[%clk 0:00:21.6]} 97... Rg7+ {[%clk 0:00:37.2]} 98. Kh8 {[%clk 0:00:22.5]}
98... Rc7 {[%clk 0:00:39.1]} 99. Ra1 {[%clk 0:00:20.4]} 99... Kf4 {[%clk
0:00:39.8]} 100. Kg8 {[%clk 0:00:21.5]} 100... Kg5 {[%clk 0:00:40.4]} 101. Ra6
{[%clk 0:00:22.1]} 101... Rd7 {[%clk 0:00:38.7]} 102. Kf8 {[%clk 0:00:20.6]}
102... Nd6 {[%clk 0:00:39.6]} 103. Ra1 {[%clk 0:00:18.7]} 103... Kf6 {[%clk
0:00:40.1]} 104. Kg8 {[%clk 0:00:17.3]} 104... Nf5 {[%clk 0:00:39.9]} 105. Ra6+
{[%clk 0:00:16.2]} 105... Nd6 {[%clk 0:00:41.2]} 106. Ra1 {[%clk 0:00:15.7]}
106... Rg7+ {[%clk 0:00:26.8]} 107. Kf8 {[%clk 0:00:15.2]} 107... Rb7 {[%clk
0:00:25.4]} 108. Rf1+ {[%clk 0:00:14.3]} 108... Nf5 {[%clk 0:00:26.3]} 109. Ke8
{[%clk 0:00:15.1]} 109... Ra7 {[%clk 0:00:23.8]} 110. Kd8 {[%clk 0:00:15.3]}
110... Ke6 {[%clk 0:00:24.6]} 111. Kc8 {[%clk 0:00:16.3]} 111... Nd6+ {[%clk
0:00:25.1]} 112. Kb8 {[%clk 0:00:16.4]} 112... Rh7 {[%clk 0:00:26.5]} 113. Rb1
{[%clk 0:00:08.3]} 113... Kd5 {[%clk 0:00:26.4]} 114. Rd1+ {[%clk 0:00:08.6]}
114... Kc6 {[%clk 0:00:27.7]} 115. Rc1+ {[%clk 0:00:09.9]} 115... Kb6 {[%clk
0:00:28.5]} 116. Rb1+ {[%clk 0:00:11.3]} 116... Nb5 {[%clk 0:00:29.2]} 117. Kc8
{[%clk 0:00:12.1]} 117... Rg7 {[%clk 0:00:30.1]} 118. Kd8 {[%clk 0:00:13.4]}
118... Kc6 {[%clk 0:00:30.5]} 119. Ke8 {[%clk 0:00:14.6]} 119... Nd6+ {[%clk
0:00:31]} 120. Kf8 {[%clk 0:00:16.1]} 120... Ra7 {[%clk 0:00:32.2]} 121. Re1
{[%clk 0:00:15.3]} 121... Kd5 {[%clk 0:00:32.6]} 122. Kg8 {[%clk 0:00:16.2]}
122... Ne4 {[%clk 0:00:33.5]} 123. Rd1+ {[%clk 0:00:16.5]} 123... Ke5 {[%clk
0:00:33.7]} 124. Re1 {[%clk 0:00:16.4]} 124... Kf5 {[%clk 0:00:34.4]} 125. Rf1+
{[%clk 0:00:15.5]} 1/2-1/2